[Event "Eurasia Open Cup 2019"]
[Site "Ekaterinburg"]
[Date "2019.08.08"]
[Round "8.41"]
[White "Manakova, Maria"]
[Black "Voinikonis, Nikita"]
[Result "1-0"]
[ECO "A00"]
[WhiteElo "2237"]
[BlackElo "2137"]
[Annotator "NA"]
[PlyCount "83"]
[EventDate "2019.07.31"]
[EventType "swiss"]
[EventCountry "RUS"]
[SourceTitle "playchess.com"]
[Source "ChessBase"]
[SourceQuality "1"]
[TimeControl "5400+30"]

1. g3 {[%emt 0:00:00]} e5 {[%emt 0:00:23]} 2. Bg2 {[%emt 0:00:00]} h5 {[%emt 0:01:00]} 3. h4 {[%emt 0:14:18]} d5 {[%emt 0:00:43]} 4. d3 {[%emt 0:00:48]} Nc6 {[%emt 0:00:21]} 5. Nf3 {[%emt 0:00:26]} Nf6 {[%emt 0:00:16]} 6. O-O {[%emt 0:02:02]} Bc5 {[%emt 0:05:08]} 7. c3 {[%emt 0:02:25]} a5 {[%emt 0:00:11]} 8. d4 {[%emt 0:01:09]} Bd6 {[%emt 0:00:21]} 9. dxe5 {[%emt 0:03:13]} Nxe5 {[%emt 0:00:06]} 10. Nxe5 {[%emt 0:08:57]} Bxe5 {[%emt 0:00:05]} 11. Nd2 {[%emt 0:01:35]} c6 {[%emt 0:10:39]} 12. c4 {[%emt 0:02:05]} O-O {[%emt 0:03:43]} 13. cxd5 {[%emt 0:00:47]} Nxd5 {[%emt 0:00:05]} 14. Nc4 {[%emt 0:00:42]} Bc7 {[%emt 0:02:43]} 15. e4 {[%emt 0:13:31]} Nb6 {[%emt 0:05:20]} 16. Ne3 {[%emt 0:01:19]} Qxd1 {[%emt 0:00:47]} 17. Rxd1 {[%emt 0:00:00]} Be6 {[%emt 0:00:18]} 18. Nf5 {[%emt 0:11:23]} Rfd8 {[%emt 0:08:35]} 19. Bd2 {[%emt 0:00:15]} Na4 {[%emt 0:00:37]} 20. Be3 {[%emt 0:07:41]} Nxb2 {[%emt 0:03:34]} 21. Rxd8+ {[%emt 0:07:33]} Rxd8 {[%emt 0:00:05]} 22. Rb1 {[%emt 0:00:45]} Rd1+ {[%emt 0:00:31]} 23. Rxd1 {[%emt 0:00:05]} Nxd1 {[%emt 0:00:05]} 24. Bd4 {[%emt 0:03:21]} Bxa2 {[%emt 0:01:19]} 25. Nxg7 {[%emt 0:07:46]} c5 {[%emt 0:02:30]} 26. Ba1 {[%emt 0:00:05]} c4 {[%emt 0:00:20]} 27. Bf3 {[%emt 0:00:05]} Bb3 {[%emt 0:00:15]} 28. Nxh5 {[%emt 0:00:15]} Bd8 {[%emt 0:24:06]} 29. Nf6+ {[%emt 0:03:15]} Kg7 {[%emt 0:15:27]} 30. Nd5+ {[%emt 0:02:54]} Kh6 {[%emt 0:00:10]} 31. Kf1 {[%emt 0:00:55]} a4 {[%emt 0:00:54]} 32. Ke1 {[%emt 0:03:34]} Ba5+ {[%emt 0:00:14]} 33. Kf1 {[%emt 0:00:17]} Bd2 {[%emt 0:06:16]} 34. g4 {[%emt 0:00:51]} Bc1 {[%emt 0:01:36]} 35. g5+ {[%emt 0:00:17]} Kg6 {[%emt 0:00:34]} 36. Bf6 {[%emt 0:00:58]} c3 {[%emt 0:05:54]} 37. Ne7+ {[%emt 0:00:52]} Kh7 {[%emt 0:00:06]} 38. Bg4 {[%emt 0:00:28]} Bc4+ {[%emt 0:00:51]} 39. Kg2 {[%emt 0:00:40]} Be6 {[%emt 0:01:06]} 40. Bxe6 {[%emt 0:00:25]} fxe6 {[%emt 0:00:07]} 41. g6+ {[%emt 0:00:03]} Kh6 {[%emt 0:00:14]} 42. g7 {[%emt 0:00:12]} 1-0

[Event "Eurasia Open Cup 2019"]
[Site "Ekaterinburg"]
[Date "2019.08.08"]
[Round "8.42"]
[White "Fomin, Pavel V."]
[Black "Odegov, Artem"]
[Result "1/2-1/2"]
[ECO "A20"]
[WhiteElo "2103"]
[BlackElo "2261"]
[Annotator "NA"]
[PlyCount "83"]
[EventDate "2019.07.31"]
[EventType "swiss"]
[EventCountry "RUS"]
[SourceTitle "playchess.com"]
[Source "ChessBase"]
[SourceQuality "1"]
[TimeControl "5400+30"]

1. c4 {[%emt 0:00:00]} e5 {[%emt 0:00:00]} 2. g3 {[%emt 0:00:00]} c6 {[%emt 0:00:00]} 3. Bg2 {[%emt 0:00:00]} Nf6 {[%emt 0:00:33]} 4. d3 {[%emt 0:10:21]} Bb4+ {[%emt 0:07:21]} 5. Bd2 {[%emt 0:01:19]} Bxd2+ {[%emt 0:00:11]} 6. Qxd2 {[%emt 0:05:56]} O-O {[%emt 0:00:22]} 7. Nf3 {[%emt 0:03:07]} Re8 {[%emt 0:01:14]} 8. O-O {[%emt 0:00:38]} d5 {[%emt 0:02:14]} 9. e3 {[%emt 0:05:41]} Bg4 {[%emt 0:12:31]} 10. h3 {[%emt 0:11:24]} Bxf3 {[%emt 0:10:34]} 11. Bxf3 {[%emt 0:00:06]} Qd7 {[%emt 0:04:35]} 12. Bg2 {[%emt 0:06:50]} Na6 {[%emt 0:06:22]} 13. cxd5 {[%emt 0:00:47]} cxd5 {[%emt 0:00:08]} 14. d4 {[%emt 0:01:45]} e4 {[%emt 0:01:13]} 15. Rc1 {[%emt 0:01:20]} Nc7 {[%emt 0:05:19]} 16. Qe2 {[%emt 0:04:56]} Rec8 {[%emt 0:03:09]} 17. Kh2 {[%emt 0:08:37]} Nfe8 {[%emt 0:02:08]} 18. Nd2 {[%emt 0:04:02]} Nd6 {[%emt 0:00:26]} 19. Rc2 {[%emt 0:07:59]} Ne6 {[%emt 0:01:15]} 20. Rac1 {[%emt 0:00:10]} Rxc2 {[%emt 0:10:52]} 21. Rxc2 {[%emt 0:00:02]} Qa4 {[%emt 0:00:06]} 22. b3 {[%emt 0:00:05]} Qd7 {[%emt 0:00:45]} 23. Nb1 {[%emt 0:00:35]} Nf5 {[%emt 0:00:25]} 24. Qd1 {[%emt 0:02:25]} Ne7 {[%emt 0:04:26]} 25. a3 {[%emt 0:03:16]} Rd8 {[%emt 0:02:03]} 26. Rc3 {[%emt 0:04:11]} f5 {[%emt 0:12:47]} 27. Nd2 {[%emt 0:03:12]} Qd6 {[%emt 0:02:40]} 28. b4 {[%emt 0:04:25]} b6 {[%emt 0:01:40]} 29. Qa4 {[%emt 0:00:07]} Qd7 {[%emt 0:02:22]} 30. Qc2 {[%emt 0:01:33]} Rc8 {[%emt 0:00:13]} 31. Bf1 {[%emt 0:02:37]} Rxc3 {[%emt 0:02:46]} 32. Qxc3 {[%emt 0:01:03]} Qc7 {[%emt 0:00:00]} 33. Qxc7 {[%emt 0:00:12]} Nxc7 {[%emt 0:00:11]} 34. g4 {[%emt 0:01:06]} Kf7 {[%emt 0:00:03]} 35. Kg3 {[%emt 0:00:14]} Kf6 {[%emt 0:01:16]} 36. Be2 {[%emt 0:00:09]} Ne6 {[%emt 0:00:57]} 37. h4 {[%emt 0:00:34]} h6 {[%emt 0:01:18]} 38. Bb5 {[%emt 0:03:10]} f4+ {[%emt 0:01:40]} 39. Kg2 {[%emt 0:01:41]} fxe3 {[%emt 0:01:01]} 40. fxe3 {[%emt 0:00:44]} Nc7 {[%emt 0:00:33]} 41. Be2 {[%emt 0:00:07]} g5 {[%emt 0:00:23]} 42. h5 {[%emt 0:00:42]} 1/2-1/2

[Event "Eurasia Open Cup 2019"]
[Site "Ekaterinburg"]
[Date "2019.08.08"]
[Round "8.43"]
[White "Mamontova, Anastasia"]
[Black "Kolay, Alex"]
[Result "1/2-1/2"]
[ECO "C07"]
[WhiteElo "1989"]
[BlackElo "2229"]
[Annotator "NA"]
[PlyCount "48"]
[EventDate "2019.07.31"]
[EventType "swiss"]
[EventCountry "RUS"]
[SourceTitle "playchess.com"]
[Source "ChessBase"]
[SourceQuality "1"]
[TimeControl "5400+30"]

1. e4 {[%emt 0:00:00]} e6 {[%emt 0:00:00]} 2. d4 {[%emt 0:00:00]} d5 {[%emt 0:00:00]} 3. Nd2 {[%emt 0:00:00]} c5 {[%emt 0:00:00]} 4. exd5 {[%emt 0:00:00]} Qxd5 {[%emt 0:00:01]} 5. Ngf3 {[%emt 0:00:00]} cxd4 {[%emt 0:00:10]} 6. Bc4 {[%emt 0:00:00]} Qd6 {[%emt 0:00:05]} 7. Qe2 {[%emt 0:00:31]} Nf6 {[%emt 0:00:27]} 8. Nb3 {[%emt 0:00:16]} Nc6 {[%emt 0:00:17]} 9. Bg5 {[%emt 0:00:43]} a6 {[%emt 0:11:51]} 10. O-O-O {[%emt 0:00:21]} Qc7 {[%emt 0:03:49]} 11. Nbxd4 {[%emt 0:09:40]} Nxd4 {[%emt 0:00:48]} 12. Nxd4 {[%emt 0:00:16]} Be7 {[%emt 0:00:27]} 13. Rhe1 {[%emt 0:19:15]} h6 {[%emt 0:03:13]} 14. Bd2 {[%emt 0:13:03]} O-O {[%emt 0:03:59]} 15. f4 {[%emt 0:05:54]} Bd6 {[%emt 0:01:49]} 16. g3 {[%emt 0:04:33]} b5 {[%emt 0:08:10]} 17. Bd3 {[%emt 0:07:40]} Bb7 {[%emt 0:00:39]} 18. Nf3 {[%emt 0:04:15]} Rfe8 {[%emt 0:07:13]} 19. Ne5 {[%emt 0:00:51]} Nd5 {[%emt 0:04:17]} 20. Qe4 {[%emt 0:18:20]} Nf6 {[%emt 0:02:10]} 21. Qe2 {[%emt 0:00:15]} Nd5 {[%emt 0:17:44]} 22. Qe4 {[%emt 0:03:02]} Nf6 {[%emt 0:01:41]} 23. Qe2 {[%emt 0:00:10]} Rab8 {[%emt 0:00:00]} 24. g4 {[%emt 0:00:00]} Rbd8 {[%emt 0:00:05]} 1/2-1/2

[Event "Eurasia Open Cup 2019"]
[Site "Ekaterinburg"]
[Date "2019.08.08"]
[Round "8.44"]
[White "Larichev, Dmitry"]
[Black "Ufimtsev, Egor"]
[Result "1/2-1/2"]
[ECO "B15"]
[WhiteElo "2225"]
[BlackElo "2148"]
[Annotator "NA"]
[PlyCount "146"]
[EventDate "2019.07.31"]
[EventType "swiss"]
[EventCountry "RUS"]
[SourceTitle "playchess.com"]
[Source "ChessBase"]
[SourceQuality "1"]
[TimeControl "5400+30"]

1. e4 {[%emt 0:00:00]} c6 {[%emt 0:00:00]} 2. d4 {[%emt 0:00:00]} d5 {[%emt 0:00:00]} 3. Nc3 {[%emt 0:00:56]} dxe4 {[%emt 0:00:00]} 4. Nxe4 {[%emt 0:00:00]} Nf6 {[%emt 0:00:00]} 5. Nxf6+ {[%emt 0:00:05]} exf6 {[%emt 0:00:00]} 6. Bf4 {[%emt 0:01:37]} Qb6 {[%emt 0:02:12]} 7. Qe2+ {[%emt 0:07:50]} Be6 {[%emt 0:01:25]} 8. O-O-O {[%emt 0:00:05]} Be7 {[%emt 0:11:14]} 9. c4 {[%emt 0:00:22]} O-O {[%emt 0:06:21]} 10. Qc2 {[%emt 0:03:45]} Qa5 {[%emt 0:08:37]} 11. Kb1 {[%emt 0:00:42]} Na6 {[%emt 0:08:44]} 12. Bd2 {[%emt 0:03:44]} Nb4 {[%emt 0:01:28]} 13. Bxb4 {[%emt 0:00:10]} Bxb4 {[%emt 0:01:33]} 14. Bd3 {[%emt 0:00:11]} h6 {[%emt 0:00:58]} 15. Ne2 {[%emt 0:01:45]} Bd6 {[%emt 0:04:00]} 16. Ng3 {[%emt 0:02:26]} Rfd8 {[%emt 0:05:57]} 17. Bh7+ {[%emt 0:06:02]} Kh8 {[%emt 0:00:58]} 18. Be4 {[%emt 0:02:36]} Rac8 {[%emt 0:07:13]} 19. Rhe1 {[%emt 0:03:08]} b5 {[%emt 0:03:01]} 20. Bf5 {[%emt 0:05:06]} Bxc4 {[%emt 0:04:28]} 21. b3 {[%emt 0:00:00]} Rb8 {[%emt 0:02:07]} 22. Ne4 {[%emt 0:09:34]} Bf8 {[%emt 0:09:05]} 23. Re3 {[%emt 0:07:12]} Be6 {[%emt 0:02:38]} 24. Bxe6 {[%emt 0:00:56]} fxe6 {[%emt 0:00:05]} 25. Qxc6 {[%emt 0:01:10]} Qb6 {[%emt 0:01:04]} 26. Qxb6 {[%emt 0:00:56]} Rxb6 {[%emt 0:00:20]} 27. Red3 {[%emt 0:00:05]} f5 {[%emt 0:01:31]} 28. Nc3 {[%emt 0:04:20]} b4 {[%emt 0:00:15]} 29. Ne2 {[%emt 0:00:20]} Rbd6 {[%emt 0:04:22]} 30. h4 {[%emt 0:06:01]} Be7 {[%emt 0:01:46]} 31. h5 {[%emt 0:00:52]} Bf6 {[%emt 0:00:00]} 32. f3 {[%emt 0:06:03]} Kg8 {[%emt 0:00:39]} 33. Nf4 {[%emt 0:02:25]} Bg5 {[%emt 0:00:54]} 34. Ng6 {[%emt 0:00:38]} Bf6 {[%emt 0:01:11]} 35. Nf4 {[%emt 0:02:00]} Bg5 {[%emt 0:00:15]} 36. Ng6 {[%emt 0:00:04]} Bf6 {[%emt 0:00:38]} 37. Nf4 {[%emt 0:00:08]} Kf7 {[%emt 0:04:08]} 38. d5 {[%emt 0:06:31]} exd5 {[%emt 0:03:25]} 39. Nxd5 {[%emt 0:03:53]} a5 {[%emt 0:00:12]} 40. Nxb4 {[%emt 0:00:12]} Rxd3 {[%emt 0:00:15]} 41. Nxd3 {[%emt 0:00:37]} Rd4 {[%emt 0:00:57]} 42. g3 {[%emt 0:00:46]} Ke7 {[%emt 0:01:18]} 43. Kc2 {[%emt 0:00:14]} Rd8 {[%emt 0:00:51]} 44. Re1+ {[%emt 0:01:13]} Kd6 {[%emt 0:00:29]} 45. Nb2 {[%emt 0:00:17]} Rc8+ {[%emt 0:00:55]} 46. Nc4+ {[%emt 0:00:05]} Kd5 {[%emt 0:00:38]} 47. Kd3 {[%emt 0:04:01]} Kc5 {[%emt 0:00:03]} 48. Ne3 {[%emt 0:01:49]} Kb4 {[%emt 0:02:40]} 49. Nxf5 {[%emt 0:01:45]} Rc3+ {[%emt 0:00:44]} 50. Ke4 {[%emt 0:00:14]} Rc2 {[%emt 0:00:05]} 51. Re3 {[%emt 0:04:32]} Rxa2 {[%emt 0:00:13]} 52. Nd6 {[%emt 0:00:18]} Rd2 {[%emt 0:01:03]} 53. Ne8 {[%emt 0:00:50]} Bc3 {[%emt 0:01:14]} 54. Nc7 {[%emt 0:00:49]} Kxb3 {[%emt 0:00:49]} 55. Nb5 {[%emt 0:00:05]} Rc2 {[%emt 0:00:10]} 56. Nd4+ {[%emt 0:00:02]} Kb2 {[%emt 0:00:04]} 57. Nxc2 {[%emt 0:00:14]} Kxc2 {[%emt 0:00:01]} 58. Kd5 {[%emt 0:03:50]} Kb3 {[%emt 0:00:18]} 59. Re7 {[%emt 0:01:15]} a4 {[%emt 0:00:03]} 60. Rb7+ {[%emt 0:00:05]} Bb4 {[%emt 0:00:05]} 61. Rxg7 {[%emt 0:00:15]} a3 {[%emt 0:00:22]} 62. Ra7 {[%emt 0:00:33]} a2 {[%emt 0:00:04]} 63. Rxa2 {[%emt 0:00:14]} Kxa2 {[%emt 0:00:02]} 64. Ke6 {[%emt 0:00:48]} Kb3 {[%emt 0:00:04]} 65. f4 {[%emt 0:00:53]} Kc4 {[%emt 0:00:04]} 66. Kf7 {[%emt 0:00:44]} Kd5 {[%emt 0:00:44]} 67. Kg7 {[%emt 0:00:30]} Be1 {[%emt 0:01:12]} 68. g4 {[%emt 0:00:03]} Ke4 {[%emt 0:00:32]} 69. Kxh6 {[%emt 0:00:43]} Kxf4 {[%emt 0:02:01]} 70. g5 {[%emt 0:00:36]} Bc3 {[%emt 0:00:08]} 71. g6 {[%emt 0:00:07]} Kg4 {[%emt 0:01:09]} 72. g7 {[%emt 0:00:12]} Bxg7+ {[%emt 0:00:03]} 73. Kxg7 {[%emt 0:00:53]} Kxh5 {[%emt 0:00:03]} 1/2-1/2

[Event "Eurasia Open Cup 2019"]
[Site "Ekaterinburg"]
[Date "2019.08.09"]
[Round "9.4"]
[White "Khismatullin, Denis"]
[Black "Shubin, Kirill"]
[Result "1-0"]
[ECO "E30"]
[WhiteElo "2618"]
[BlackElo "2426"]
[Annotator "RC"]
[PlyCount "59"]
[EventDate "2019.07.31"]
[EventType "swiss"]
[EventCountry "RUS"]
[SourceTitle "playchess.com"]
[Source "ChessBase"]
[SourceQuality "1"]
[TimeControl "5400+30"]

1. d4 {[%emt 0:04:16]} e6 {[%emt 0:00:00]} 2. c4 {[%emt 0:00:00]} Nf6 {[%emt 0:00:00]} 3. Nc3 {[%emt 0:01:13]} Bb4 {[%emt 0:00:00]} 4. Bg5 {[%emt 0:04:27]} b6 {[%emt 0:05:22]} 5. f3 {[%emt 0:02:01]} O-O {[%emt 0:04:01]} 6. e4 {[%emt 0:02:03]} d6 {[%emt 0:00:13]} 7. Bd3 {[%emt 0:15:26]} h6 {[%emt 0:05:24]} 8. Bh4 {[%emt 0:08:03]} Nbd7 {[%emt 0:06:55]} 9. Nge2 {[%emt 0:06:09]} c5 {[%emt 0:03:11]} 10. a3 {[%emt 0:01:38]} Bxc3+ {[%emt 0:00:53]} 11. bxc3 {[%emt 0:00:06]} Qc7 {[%emt 0:01:15]} 12. O-O {[%emt 0:00:42]} Bb7 {[%emt 0:06:32]} 13. a4 {[%emt 0:05:40]} Rfc8 {[%emt 0:03:54]} 14. d5 {[%emt 0:03:48]} Re8 {[%emt 0:05:44]} 15. Qc2 {[%emt 0:03:47]} exd5 {[%emt 0:01:17]} 16. exd5 {[%emt 0:00:17]} Ba6 {[%emt 0:00:41]} 17. Ng3 {[%emt 0:04:33]} Kf8 {[%emt 0:15:15]} 18. f4 {[%emt 0:06:55]} g6 {[%emt 0:10:06]} 19. Bxg6 {[%emt 0:03:35]} Bxc4 {[%emt 0:00:33]} 20. Bf5 {[%emt 0:06:03]} Ng8 {[%emt 0:02:40]} 21. Bd3 {[%emt 0:00:41]} Bxd5 {[%emt 0:03:20]} 22. Bb5 {[%emt 0:02:17]} f6 {[%emt 0:02:43]} 23. Rad1 {[%emt 0:01:49]} Be6 {[%emt 0:01:44]} 24. Qg6 {[%emt 0:02:49]} Re7 {[%emt 0:01:52]} 25. Nh5 {[%emt 0:01:48]} c4 {[%emt 0:08:26]} 26. Kh1 {[%emt 0:05:48]} Rd8 {[%emt 0:06:50]} 27. Bxd7 {[%emt 0:01:34]} Rdxd7 {[%emt 0:00:44]} 28. Bxf6 {[%emt 0:01:23]} Nxf6 {[%emt 0:01:02]} 29. Qxf6+ {[%emt 0:00:25]} Kg8 {[%emt 0:00:42]} 30. f5 {[%emt 0:00:47]} 1-0